[Event "Late-Titled-Tuesday-Blitz-July-09-2024"]
[Site "Chess.com"]
[Date "2024.07.09"]
[Round "5"]
[White "AlphaPerseii"]
[Black "JEHUBNER"]
[Result "1/2-1/2"]
[WhiteElo "2375"]
[BlackElo "2012"]
[TimeControl "180+1"]
[EndTime "14:54:59 PDT"]
[Termination "Game drawn by repetition"]

1. Nf3 {[%clk 0:02:57.7]} 1... Nf6 {[%clk 0:02:58.7]} 2. c4 {[%clk 0:02:57.6]}
2... c5 {[%clk 0:02:58.7]} 3. g3 {[%clk 0:02:57]} 3... Nc6 {[%clk 0:02:59.2]} 4.
Bg2 {[%clk 0:02:56.9]} 4... e6 {[%clk 0:02:59.5]} 5. d4 {[%clk 0:02:55.3]} 5...
cxd4 {[%clk 0:02:59.4]} 6. Nxd4 {[%clk 0:02:55.9]} 6... d5 {[%clk 0:02:56.3]} 7.
O-O {[%clk 0:02:52.3]} 7... Be7 {[%clk 0:02:56.1]} 8. Nc3 {[%clk 0:02:43.5]}
8... O-O {[%clk 0:02:54.8]} 9. cxd5 {[%clk 0:02:39.9]} 9... exd5 {[%clk
0:02:53.8]} 10. Bf4 {[%clk 0:02:31.2]} 10... Bc5 {[%clk 0:02:35.4]} 11. Ndb5
{[%clk 0:02:20.3]} 11... d4 {[%clk 0:02:14]} 12. Na4 {[%clk 0:02:19]} 12... Bb6
{[%clk 0:02:08.3]} 13. Nxb6 {[%clk 0:02:16.4]} 13... axb6 {[%clk 0:02:09.2]} 14.
Bc7 {[%clk 0:01:45.2]} 14... Qd7 {[%clk 0:01:33.7]} 15. Bxb6 {[%clk 0:01:44.1]}
15... Nb4 {[%clk 0:01:22.6]} 16. Na3 {[%clk 0:01:30.7]} 16... Nc6 {[%clk
0:01:13.1]} 17. Rc1 {[%clk 0:01:23.6]} 17... Qe6 {[%clk 0:01:06.8]} 18. Qd2
{[%clk 0:00:35.2]} 18... Qxa2 {[%clk 0:00:55.3]} 19. Rfd1 {[%clk 0:00:06.2]}
19... Be6 {[%clk 0:00:43]} 20. Bc5 {[%clk 0:00:06]} 20... Rfd8 {[%clk
0:00:40.4]} 21. Bxc6 {[%clk 0:00:05.1]} 21... bxc6 {[%clk 0:00:40]} 22. Be7
{[%clk 0:00:05.5]} 22... Rdb8 {[%clk 0:00:30.3]} 23. Bxf6 {[%clk 0:00:05.6]}
23... gxf6 {[%clk 0:00:30.7]} 24. Qxd4 {[%clk 0:00:04.1]} 24... Qxb2 {[%clk
0:00:27.5]} 25. Nc4 {[%clk 0:00:03.6]} 25... Qxd4 {[%clk 0:00:26.9]} 26. Rxd4
{[%clk 0:00:03]} 26... Rb4 {[%clk 0:00:24.9]} 27. e3 {[%clk 0:00:02.6]} 27...
Raa4 {[%clk 0:00:24.2]} 28. Nb6 {[%clk 0:00:02.2]} 28... Rxd4 {[%clk 0:00:23.3]}
29. exd4 {[%clk 0:00:02.8]} 29... Rxd4 {[%clk 0:00:23.5]} 30. Rxc6 {[%clk
0:00:03.5]} 30... Bh3 {[%clk 0:00:21.7]} 31. f4 {[%clk 0:00:03.4]} 31... Rd2
{[%clk 0:00:21.4]} 32. Rxf6 {[%clk 0:00:02.4]} 32... Rg2+ {[%clk 0:00:20.6]} 33.
Kf1 {[%clk 0:00:02.8]} 33... Rxh2+ {[%clk 0:00:18.4]} 34. Ke1 {[%clk 0:00:03.5]}
34... Rg2 {[%clk 0:00:17.5]} 35. Nd7 {[%clk 0:00:02.8]} 35... Bxd7 {[%clk
0:00:16.9]} 36. Kf1 {[%clk 0:00:02.4]} 36... Ra2 {[%clk 0:00:15.5]} 37. Rd6
{[%clk 0:00:03.3]} 37... Be6 {[%clk 0:00:15.9]} 38. Kg1 {[%clk 0:00:02.9]} 38...
Kg7 {[%clk 0:00:15.9]} 39. Rc6 {[%clk 0:00:01.9]} 39... Bd5 {[%clk 0:00:13.7]}
40. Rd6 {[%clk 0:00:02.2]} 40... Be6 {[%clk 0:00:13]} 41. Rb6 {[%clk 0:00:02.5]}
41... Bh3 {[%clk 0:00:13.1]} 42. Rd6 {[%clk 0:00:01.9]} 42... Rg2+ {[%clk
0:00:12.5]} 43. Kh1 {[%clk 0:00:02.6]} 43... Ra2 {[%clk 0:00:12.1]} 44. Kg1
{[%clk 0:00:02.7]} 44... Be6 {[%clk 0:00:12.4]} 1/2-1/2

[Event "Late-Titled-Tuesday-Blitz-July-09-2024"]
[Site "Chess.com"]
[Date "2024.07.09"]
[Round "5"]
[White "DanielNaroditsky"]
[Black "Bykov_Egor"]
[Result "1-0"]
[WhiteElo "3089"]
[BlackElo "2691"]
[TimeControl "180+1"]
[EndTime "14:55:02 PDT"]
[Termination "DanielNaroditsky won on time"]

1. d4 {[%clk 0:03:00.9]} 1... Nf6 {[%clk 0:02:59.8]} 2. Nc3 {[%clk 0:02:58.1]}
2... d5 {[%clk 0:02:58.3]} 3. Bf4 {[%clk 0:02:58.8]} 3... a6 {[%clk 0:02:58]} 4.
e3 {[%clk 0:02:59.2]} 4... c5 {[%clk 0:02:49.8]} 5. dxc5 {[%clk 0:02:58.7]} 5...
Nc6 {[%clk 0:02:44.4]} 6. Nf3 {[%clk 0:02:59.1]} 6... e6 {[%clk 0:02:41.5]} 7.
Bd3 {[%clk 0:02:59.5]} 7... Bxc5 {[%clk 0:02:39.5]} 8. O-O {[%clk 0:03:00.3]}
8... O-O {[%clk 0:02:34.2]} 9. e4 {[%clk 0:03:00.9]} 9... dxe4 {[%clk
0:02:10.2]} 10. Nxe4 {[%clk 0:03:01.8]} 10... Be7 {[%clk 0:02:08]} 11. Nxf6+
{[%clk 0:03:02.4]} 11... Bxf6 {[%clk 0:02:06.9]} 12. Qe2 {[%clk 0:03:03.3]}
12... Nd4 {[%clk 0:01:53.8]} 13. Nxd4 {[%clk 0:03:03.6]} 13... Qxd4 {[%clk
0:01:52.2]} 14. Bg3 {[%clk 0:03:03.9]} 14... Qxb2 {[%clk 0:01:04.1]} 15. Rad1
{[%clk 0:03:04.6]} 15... Re8 {[%clk 0:00:51.8]} 16. h4 {[%clk 0:03:02.6]} 16...
Qb4 {[%clk 0:00:39.4]} 17. h5 {[%clk 0:03:01.5]} 17... e5 {[%clk 0:00:38]} 18.
Be4 {[%clk 0:03:01.3]} 18... Be6 {[%clk 0:00:34.2]} 19. Rb1 {[%clk 0:03:01.7]}
19... Qc4 {[%clk 0:00:31]} 20. Bd3 {[%clk 0:02:59.9]} 20... Qc6 {[%clk
0:00:28.4]} 21. Rfe1 {[%clk 0:02:56.4]} 21... Rac8 {[%clk 0:00:17.5]} 22. h6
{[%clk 0:02:56.5]} 22... b5 {[%clk 0:00:13.9]} 23. hxg7 {[%clk 0:02:55.6]} 23...
Bc4 {[%clk 0:00:12.4]} 24. Qg4 {[%clk 0:02:39.6]} 24... Bxd3 {[%clk 0:00:11.5]}
25. cxd3 {[%clk 0:02:40.5]} 25... Qe6 {[%clk 0:00:10.6]} 26. Qf3 {[%clk
0:02:36]} 26... Bxg7 {[%clk 0:00:09.9]} 27. Rb4 {[%clk 0:02:28.2]} 27... f5
{[%clk 0:00:06.7]} 28. a4 {[%clk 0:02:22.5]} 28... e4 {[%clk 0:00:07.1]} 29.
dxe4 {[%clk 0:02:19.3]} 29... Bc3 {[%clk 0:00:07.7]} 30. Rd1 {[%clk 0:02:05.2]}
30... Bxb4 {[%clk 0:00:04.5]} 31. exf5 {[%clk 0:02:05.8]} 31... Qf7 {[%clk
0:00:03.8]} 32. Qg4+ {[%clk 0:02:06]} 32... Kh8 {[%clk 0:00:03.1]} 33. Qxb4
{[%clk 0:02:03.1]} 33... Qxf5 {[%clk 0:00:01.8]} 34. axb5 {[%clk 0:01:58.4]}
34... axb5 {[%clk 0:00:02.7]} 35. Ra1 {[%clk 0:01:56.7]} 35... Rc4 {[%clk
0:00:01.8]} 36. Qd6 {[%clk 0:01:50.2]} 36... Rce4 {[%clk 0:00:02.3]} 37. f3
{[%clk 0:01:43.9]} 37... R4e6 {[%clk 0:00:02.8]} 38. Qb4 {[%clk 0:01:38.2]}
38... Qg6 {[%clk 0:00:02.5]} 39. Bf2 {[%clk 0:01:35.2]} 39... Kg8 {[%clk
0:00:02.9]} 40. Qxb5 {[%clk 0:01:34]} 40... Re2 {[%clk 0:00:01.3]} 41. Ra7
{[%clk 0:01:30.8]} 41... R2e7 {[%clk 0:00:01.3]} 42. Ra6 {[%clk 0:01:27.5]}
42... Qf7 {[%clk 0:00:01.3]} 43. Ra4 {[%clk 0:01:12.3]} 43... Re6 {[%clk
0:00:01.4]} 44. Ra7 {[%clk 0:00:58.5]} 44... Qf6 {[%clk 0:00:01.2]} 45. Qc4
{[%clk 0:00:53.8]} 45... Qg6 {[%clk 0:00:01.2]} 46. Bd4 {[%clk 0:00:53]} 46...
Kf8 {[%clk 0:00:01.5]} 47. Qb4+ {[%clk 0:00:47.6]} 47... Kg8 {[%clk 0:00:01.5]}
48. Rg7+ {[%clk 0:00:44]} 48... Qxg7 {[%clk 0:00:01.5]} 49. Bxg7 {[%clk
0:00:44.9]} 49... Kxg7 {[%clk 0:00:02.4]} 50. Qb7+ {[%clk 0:00:45.4]} 50... R8e7
{[%clk 0:00:02.7]} 51. Qd5 {[%clk 0:00:46.3]} 51... Re1+ {[%clk 0:00:02.7]} 52.
Kh2 {[%clk 0:00:46.3]} 52... R1e5 {[%clk 0:00:03]} 53. Qd4 {[%clk 0:00:46.6]}
53... Kf7 {[%clk 0:00:03.7]} 54. Qh4 {[%clk 0:00:45.4]} 54... Kg8 {[%clk
0:00:02.7]} 55. f4 {[%clk 0:00:45.4]} 55... Re2 {[%clk 0:00:02.5]} 56. Qg4+
{[%clk 0:00:45]} 56... Kf8 {[%clk 0:00:02]} 57. Qh5 {[%clk 0:00:41.2]} 1-0

[Event "Late-Titled-Tuesday-Blitz-July-09-2024"]
[Site "Chess.com"]
[Date "2024.07.09"]
[Round "5"]
[White "tjallkompall"]
[Black "Kowarenai"]
[Result "0-1"]
[WhiteElo "2772"]
[BlackElo "2565"]
[TimeControl "180+1"]
[EndTime "14:55:03 PDT"]
[Termination "Kowarenai won on time"]

1. e4 {[%clk 0:03:00.9]} 1... d5 {[%clk 0:02:58.7]} 2. exd5 {[%clk 0:02:59.7]}
2... Qxd5 {[%clk 0:02:59.6]} 3. Nc3 {[%clk 0:02:59.8]} 3... Qa5 {[%clk
0:02:59.7]} 4. Nf3 {[%clk 0:02:58.5]} 4... c6 {[%clk 0:02:59.8]} 5. d4 {[%clk
0:02:58.3]} 5... Bf5 {[%clk 0:02:59.2]} 6. Ne5 {[%clk 0:02:57.4]} 6... Nd7
{[%clk 0:02:52.3]} 7. Nc4 {[%clk 0:02:57.8]} 7... Qd8 {[%clk 0:02:49]} 8. Bf4
{[%clk 0:02:55.2]} 8... e6 {[%clk 0:02:33.1]} 9. Bd3 {[%clk 0:02:55.2]} 9...
Bxd3 {[%clk 0:02:32.6]} 10. Qxd3 {[%clk 0:02:56.1]} 10... Nb6 {[%clk 0:02:29.3]}
11. O-O-O {[%clk 0:02:53.5]} 11... Nxc4 {[%clk 0:02:28.3]} 12. Qxc4 {[%clk
0:02:53.3]} 12... Bd6 {[%clk 0:02:27.8]} 13. Bxd6 {[%clk 0:02:26.3]} 13... Qxd6
{[%clk 0:02:24.8]} 14. d5 {[%clk 0:02:26.3]} 14... exd5 {[%clk 0:02:14.4]} 15.
Nxd5 {[%clk 0:02:12.2]} 15... cxd5 {[%clk 0:01:47]} 16. Rxd5 {[%clk 0:02:12.7]}
16... Qh6+ {[%clk 0:01:40.7]} 17. Kb1 {[%clk 0:02:12]} 17... Ne7 {[%clk
0:01:40.7]} 18. Re1 {[%clk 0:02:01.7]} 18... O-O {[%clk 0:01:39.8]} 19. Rxe7
{[%clk 0:02:01.3]} 19... Qxh2 {[%clk 0:01:38.3]} 20. a4 {[%clk 0:01:49.7]} 20...
Rac8 {[%clk 0:01:32]} 21. Qb3 {[%clk 0:01:46.8]} 21... Qxg2 {[%clk 0:01:24.7]}
22. Rdd7 {[%clk 0:01:29.5]} 22... Qxf2 {[%clk 0:01:20.3]} 23. Rxb7 {[%clk
0:01:30.1]} 23... h5 {[%clk 0:01:08.1]} 24. Rb5 {[%clk 0:01:07.3]} 24... h4
{[%clk 0:00:41]} 25. Rh5 {[%clk 0:01:06.6]} 25... h3 {[%clk 0:00:24.3]} 26. Rxh3
{[%clk 0:00:43.5]} 26... Rxc2 {[%clk 0:00:24]} 27. Ka2 {[%clk 0:00:23.2]} 27...
Rcc8 {[%clk 0:00:13]} 28. Qd3 {[%clk 0:00:18.9]} 28... g6 {[%clk 0:00:04.3]} 29.
Re2 {[%clk 0:00:18.3]} 29... Qf6 {[%clk 0:00:04.3]} 30. Reh2 {[%clk 0:00:15.9]}
30... Qe6+ {[%clk 0:00:03.2]} 31. Kb1 {[%clk 0:00:12.2]} 31... Kg7 {[%clk
0:00:02.4]} 32. Qd4+ {[%clk 0:00:10.4]} 32... f6 {[%clk 0:00:02.2]} 33. Rh7+
{[%clk 0:00:10.2]} 33... Kg8 {[%clk 0:00:02.8]} 34. Rh8+ {[%clk 0:00:10.1]}
34... Kf7 {[%clk 0:00:03.4]} 35. R2h7+ {[%clk 0:00:10.1]} 35... Ke8 {[%clk
0:00:03.4]} 36. Rxf8+ {[%clk 0:00:06.3]} 36... Kxf8 {[%clk 0:00:04.3]} 37. Rh8+
{[%clk 0:00:04.6]} 37... Kg7 {[%clk 0:00:04.8]} 38. Rxc8 {[%clk 0:00:03.5]}
38... Qxc8 {[%clk 0:00:05.7]} 39. Qxa7+ {[%clk 0:00:03.9]} 39... Kh6 {[%clk
0:00:06.4]} 40. Qe3+ {[%clk 0:00:03.6]} 40... g5 {[%clk 0:00:06.4]} 41. a5
{[%clk 0:00:03.1]} 41... Qf5+ {[%clk 0:00:06.6]} 0-1

[Event "Late-Titled-Tuesday-Blitz-July-09-2024"]
[Site "Chess.com"]
[Date "2024.07.09"]
[Round "5"]
[White "santig8"]
[Black "realburq"]
[Result "0-1"]
[WhiteElo "2277"]
[BlackElo "2430"]
[TimeControl "180+1"]
[EndTime "14:55:04 PDT"]
[Termination "realburq won on time"]

1. e4 {[%clk 0:03:00.9]} 1... c5 {[%clk 0:02:57.2]} 2. d4 {[%clk 0:02:59.6]}
2... cxd4 {[%clk 0:02:53.5]} 3. c3 {[%clk 0:02:58.9]} 3... g6 {[%clk 0:02:42.1]}
4. cxd4 {[%clk 0:02:56.4]} 4... Bg7 {[%clk 0:02:42.1]} 5. Nc3 {[%clk 0:02:51.8]}
5... d6 {[%clk 0:02:35.1]} 6. Nf3 {[%clk 0:02:50.3]} 6... Bg4 {[%clk 0:02:30.7]}
7. Bc4 {[%clk 0:02:36.8]} 7... e6 {[%clk 0:01:50.8]} 8. Qa4+ {[%clk 0:02:31.3]}
8... Nd7 {[%clk 0:01:50.1]} 9. Ng5 {[%clk 0:02:21.4]} 9... h6 {[%clk 0:01:41.4]}
10. Nxf7 {[%clk 0:01:53.2]} 10... Kxf7 {[%clk 0:01:41]} 11. h3 {[%clk
0:01:53.2]} 11... Nb6 {[%clk 0:01:33.8]} 12. Qb3 {[%clk 0:01:46.9]} 12... Nxc4
{[%clk 0:01:25.2]} 13. Qxc4 {[%clk 0:01:46.1]} 13... Rc8 {[%clk 0:01:25.8]} 14.
Qf1 {[%clk 0:01:08.9]} 14... Bh5 {[%clk 0:01:24.3]} 15. g4 {[%clk 0:01:07.6]}
15... Bxg4 {[%clk 0:01:20.1]} 16. hxg4 {[%clk 0:01:06.8]} 16... Bxd4 {[%clk
0:01:20.3]} 17. Qd3 {[%clk 0:00:36.6]} 17... Qb6 {[%clk 0:01:04.2]} 18. O-O
{[%clk 0:00:18.1]} 18... Bxc3 {[%clk 0:00:59.7]} 19. bxc3 {[%clk 0:00:16.2]}
19... Nf6 {[%clk 0:00:59.8]} 20. Be3 {[%clk 0:00:15]} 20... Qc6 {[%clk
0:00:59.5]} 21. f3 {[%clk 0:00:14.6]} 21... b6 {[%clk 0:00:57.2]} 22. Bd4 {[%clk
0:00:14.5]} 22... e5 {[%clk 0:00:48]} 23. Be3 {[%clk 0:00:11.9]} 23... g5 {[%clk
0:00:48.5]} 24. Rfe1 {[%clk 0:00:10]} 24... Rhd8 {[%clk 0:00:45]} 25. Rac1
{[%clk 0:00:09.2]} 25... Qc4 {[%clk 0:00:45]} 26. Qd2 {[%clk 0:00:09]} 26... Rc6
{[%clk 0:00:37.2]} 27. Qh2 {[%clk 0:00:08.1]} 27... Rh8 {[%clk 0:00:26.2]} 28.
Red1 {[%clk 0:00:08.3]} 28... Kg6 {[%clk 0:00:21.1]} 29. Qg3 {[%clk 0:00:05.6]}
29... a5 {[%clk 0:00:19]} 30. Qf2 {[%clk 0:00:05.2]} 30... b5 {[%clk 0:00:18.8]}
31. a3 {[%clk 0:00:04]} 31... Rhc8 {[%clk 0:00:18.6]} 32. Qd2 {[%clk 0:00:02.5]}
32... Qb3 {[%clk 0:00:18.2]} 33. Qd3 {[%clk 0:00:01]} 33... Qxa3 {[%clk
0:00:16.9]} 34. Qd2 {[%clk 0:00:01.3]} 34... Qb3 {[%clk 0:00:17.1]} 35. Qd3
{[%clk 0:00:01.7]} 35... Qc4 {[%clk 0:00:17.7]} 36. Qd2 {[%clk 0:00:02]} 36...
a4 {[%clk 0:00:18.2]} 37. Rb1 {[%clk 0:00:02]} 37... a3 {[%clk 0:00:17.4]} 38.
Ra1 {[%clk 0:00:02]} 38... Ra6 {[%clk 0:00:16.7]} 39. Qf2 {[%clk 0:00:02.3]}
39... Qxc3 {[%clk 0:00:15.3]} 40. Rdc1 {[%clk 0:00:02.7]} 40... Qb2 {[%clk
0:00:11.2]} 41. Rxc8 {[%clk 0:00:02.5]} 41... Qxa1+ {[%clk 0:00:11.3]} 42. Kh2
{[%clk 0:00:03]} 42... Qb2 {[%clk 0:00:10.9]} 43. Qxb2 {[%clk 0:00:02]} 43...
axb2 {[%clk 0:00:11.8]} 0-1

[Event "Late-Titled-Tuesday-Blitz-July-09-2024"]
[Site "Chess.com"]
[Date "2024.07.09"]
[Round "5"]
[White "MaxLeto"]
[Black "TC2304"]
[Result "0-1"]
[WhiteElo "2477"]
[BlackElo "2360"]
[TimeControl "180+1"]
[EndTime "14:55:05 PDT"]
[Termination "TC2304 won by checkmate"]

1. e4 {[%clk 0:02:40.4]} 1... e6 {[%clk 0:03:00]} 2. d4 {[%clk 0:02:40.2]} 2...
d5 {[%clk 0:03:00.4]} 3. Nc3 {[%clk 0:02:40.9]} 3... dxe4 {[%clk 0:03:00.1]} 4.
Nxe4 {[%clk 0:02:38.6]} 4... Bd7 {[%clk 0:02:59.8]} 5. Bd3 {[%clk 0:02:37.6]}
5... Bc6 {[%clk 0:03:00.1]} 6. Nf3 {[%clk 0:02:35.1]} 6... Nd7 {[%clk
0:02:59.9]} 7. Qe2 {[%clk 0:02:30.9]} 7... Ngf6 {[%clk 0:03:00.3]} 8. Neg5
{[%clk 0:02:24.4]} 8... Bd6 {[%clk 0:02:51.5]} 9. Nxf7 {[%clk 0:01:54.9]} 9...
Kxf7 {[%clk 0:02:51.4]} 10. Ng5+ {[%clk 0:01:54.5]} 10... Ke8 {[%clk 0:02:39.9]}
11. Nxe6 {[%clk 0:01:49.6]} 11... Qe7 {[%clk 0:02:35.6]} 12. O-O {[%clk
0:01:05.6]} 12... Bd5 {[%clk 0:02:33]} 13. Nxg7+ {[%clk 0:00:56.6]} 13... Kf7
{[%clk 0:02:12.5]} 14. Qxe7+ {[%clk 0:00:52.5]} 14... Bxe7 {[%clk 0:02:07.6]}
15. Nf5 {[%clk 0:00:52.5]} 15... Nf8 {[%clk 0:01:34.8]} 16. Re1 {[%clk
0:00:45.4]} 16... Be6 {[%clk 0:01:26.1]} 17. Nh6+ {[%clk 0:00:21.9]} 17... Ke8
{[%clk 0:01:24.5]} 18. c4 {[%clk 0:00:21.4]} 18... Ng4 {[%clk 0:01:04.9]} 19. d5
{[%clk 0:00:14.5]} 19... Nxh6 {[%clk 0:00:56.3]} 20. Bxh6 {[%clk 0:00:15.4]}
20... Rd8 {[%clk 0:00:21.9]} 21. Bc2 {[%clk 0:00:03.8]} 21... Bf7 {[%clk
0:00:18.7]} 22. Bg5 {[%clk 0:00:03.1]} 22... Rd7 {[%clk 0:00:19.1]} 23. Bf5
{[%clk 0:00:03.3]} 23... Ng6 {[%clk 0:00:17]} 24. Bxd7+ {[%clk 0:00:02]} 24...
Kxd7 {[%clk 0:00:17.9]} 25. Bxe7 {[%clk 0:00:01.4]} 25... Nxe7 {[%clk
0:00:18.8]} 26. Rad1 {[%clk 0:00:01.3]} 26... b6 {[%clk 0:00:17.8]} 27. b4
{[%clk 0:00:01.6]} 27... Rg8 {[%clk 0:00:15.6]} 28. f3 {[%clk 0:00:01.7]} 28...
h5 {[%clk 0:00:14.3]} 29. Kf2 {[%clk 0:00:02.2]} 29... h4 {[%clk 0:00:14.8]} 30.
Re4 {[%clk 0:00:02.6]} 30... h3 {[%clk 0:00:14.3]} 31. g3 {[%clk 0:00:03.3]}
31... Bg6 {[%clk 0:00:14.5]} 32. Rh4 {[%clk 0:00:03.1]} 32... Rf8 {[%clk
0:00:14.9]} 33. Rxh3 {[%clk 0:00:03.1]} 33... Be4 {[%clk 0:00:15.6]} 34. f4
{[%clk 0:00:02.9]} 34... Bf5 {[%clk 0:00:15.9]} 35. Rh6 {[%clk 0:00:02.2]} 35...
a5 {[%clk 0:00:13.4]} 36. a3 {[%clk 0:00:02]} 36... axb4 {[%clk 0:00:13.8]} 37.
axb4 {[%clk 0:00:02.9]} 37... Ra8 {[%clk 0:00:14.1]} 38. Re1 {[%clk 0:00:03.4]}
38... Ra2+ {[%clk 0:00:12.5]} 39. Re2 {[%clk 0:00:03.4]} 39... Ra3 {[%clk
0:00:11.1]} 40. Rf6 {[%clk 0:00:03.5]} 40... Bg4 {[%clk 0:00:10.9]} 41. Re3
{[%clk 0:00:02.5]} 41... Ra2+ {[%clk 0:00:10.7]} 42. Kg1 {[%clk 0:00:02.8]}
42... Nf5 {[%clk 0:00:11.1]} 43. Re5 {[%clk 0:00:02.3]} 43... Nd4 {[%clk
0:00:11.3]} 44. Rf7+ {[%clk 0:00:02.3]} 44... Kc8 {[%clk 0:00:11.9]} 45. Rf8+
{[%clk 0:00:02.6]} 45... Kb7 {[%clk 0:00:12.1]} 46. Rg8 {[%clk 0:00:02.4]} 46...
Nf3+ {[%clk 0:00:12]} 47. Kf1 {[%clk 0:00:02.1]} 47... Bh3# {[%clk 0:00:12.5]}
0-1

[Event "Late-Titled-Tuesday-Blitz-July-09-2024"]
[Site "Chess.com"]
[Date "2024.07.09"]
[Round "5"]
[White "Itay121"]
[Black "carokannlover213"]
[Result "0-1"]
[WhiteElo "2521"]
[BlackElo "2713"]
[TimeControl "180+1"]
[EndTime "14:55:07 PDT"]
[Termination "carokannlover213 won by resignation"]

1. e4 {[%clk 0:03:00.9]} 1... e6 {[%clk 0:02:58.6]} 2. d4 {[%clk 0:02:59.7]}
2... d5 {[%clk 0:02:59.5]} 3. Nd2 {[%clk 0:02:58.9]} 3... c5 {[%clk 0:02:57.5]}
4. Ngf3 {[%clk 0:02:57.8]} 4... cxd4 {[%clk 0:02:55.5]} 5. exd5 {[%clk 0:02:58]}
5... Qxd5 {[%clk 0:02:54.3]} 6. Bc4 {[%clk 0:02:58.1]} 6... Qd7 {[%clk
0:02:50.6]} 7. O-O {[%clk 0:02:56.7]} 7... Nf6 {[%clk 0:02:49.1]} 8. Nb3 {[%clk
0:02:54.6]} 8... a6 {[%clk 0:02:45]} 9. Nbxd4 {[%clk 0:02:51.1]} 9... Bd6 {[%clk
0:02:43.4]} 10. Bg5 {[%clk 0:02:45.3]} 10... O-O {[%clk 0:02:41.6]} 11. Re1
{[%clk 0:02:32.9]} 11... Qc7 {[%clk 0:02:40.1]} 12. Bd3 {[%clk 0:02:18.1]} 12...
Nd5 {[%clk 0:02:35.5]} 13. c3 {[%clk 0:02:01.1]} 13... b5 {[%clk 0:02:19.7]} 14.
Qe2 {[%clk 0:01:52.6]} 14... h6 {[%clk 0:02:17.5]} 15. Bd2 {[%clk 0:01:10.4]}
15... Bb7 {[%clk 0:02:14.1]} 16. Qe4 {[%clk 0:01:09.3]} 16... Nf6 {[%clk
0:00:38.3]} 17. Qh4 {[%clk 0:01:08.5]} 17... Nbd7 {[%clk 0:00:37.1]} 18. Bxh6
{[%clk 0:00:53.4]} 18... gxh6 {[%clk 0:00:36.4]} 19. Qxh6 {[%clk 0:00:53.5]}
19... Rfe8 {[%clk 0:00:08]} 20. Ng5 {[%clk 0:00:50.3]} 20... Ne5 {[%clk
0:00:04.7]} 21. Bh7+ {[%clk 0:00:27.4]} 21... Nxh7 {[%clk 0:00:04.1]} 22. Qxh7+
{[%clk 0:00:28.3]} 22... Kf8 {[%clk 0:00:04.7]} 23. Qh6+ {[%clk 0:00:20.7]}
23... Ke7 {[%clk 0:00:02.6]} 24. Ndxe6 {[%clk 0:00:19.9]} 24... fxe6 {[%clk
0:00:02]} 25. Rxe5 {[%clk 0:00:12.9]} 25... Bxe5 {[%clk 0:00:02.5]} 26. Qxe6+
{[%clk 0:00:12.9]} 26... Kf8 {[%clk 0:00:03.2]} 27. Qf5+ {[%clk 0:00:10.7]}
27... Kg8 {[%clk 0:00:03.8]} 28. Qg6+ {[%clk 0:00:09.5]} 28... Qg7 {[%clk
0:00:04.4]} 29. Qh5 {[%clk 0:00:08.3]} 29... Bf6 {[%clk 0:00:05]} 30. h4 {[%clk
0:00:07.7]} 30... Re5 {[%clk 0:00:05.3]} 31. Rd1 {[%clk 0:00:05.8]} 31... Rxg5
{[%clk 0:00:04]} 32. hxg5 {[%clk 0:00:05.7]} 32... Qxg5 {[%clk 0:00:04.9]} 33.
Qh3 {[%clk 0:00:04.9]} 33... Rd8 {[%clk 0:00:05.5]} 34. Qe6+ {[%clk 0:00:05]}
34... Kf8 {[%clk 0:00:04.3]} 35. Rxd8+ {[%clk 0:00:03.4]} 35... Bxd8 {[%clk
0:00:05.2]} 36. Qd6+ {[%clk 0:00:03.8]} 36... Qe7 {[%clk 0:00:05.1]} 37. Qf4+
{[%clk 0:00:03.6]} 37... Ke8 {[%clk 0:00:05.3]} 38. Qf5 {[%clk 0:00:03.4]} 38...
Bc6 {[%clk 0:00:04.8]} 39. Qg6+ {[%clk 0:00:03.3]} 39... Kd7 {[%clk 0:00:04.1]}
40. Qf5+ {[%clk 0:00:04]} 40... Qe6 {[%clk 0:00:05]} 41. Qh7+ {[%clk 0:00:04.1]}
41... Kc8 {[%clk 0:00:05.6]} 42. Qd3 {[%clk 0:00:04.6]} 42... Qd5 {[%clk
0:00:06.5]} 43. Qg3 {[%clk 0:00:04.5]} 43... Bc7 {[%clk 0:00:06.6]} 44. f3
{[%clk 0:00:03.5]} 44... Bxg3 {[%clk 0:00:05.2]} 0-1

[Event "Late-Titled-Tuesday-Blitz-July-09-2024"]
[Site "Chess.com"]
[Date "2024.07.09"]
[Round "5"]
[White "mac0504"]
[Black "i_like_explosions"]
[Result "1-0"]
[WhiteElo "2769"]
[BlackElo "2540"]
[TimeControl "180+1"]
[EndTime "14:55:08 PDT"]
[Termination "mac0504 won by resignation"]

1. c4 {[%clk 0:03:00.9]} 1... Nf6 {[%clk 0:02:59.8]} 2. Nc3 {[%clk 0:03:00.6]}
2... g6 {[%clk 0:02:57.2]} 3. e4 {[%clk 0:03:00.8]} 3... d6 {[%clk 0:02:57]} 4.
d4 {[%clk 0:03:01.4]} 4... Bg7 {[%clk 0:02:57.4]} 5. Be2 {[%clk 0:03:00.4]} 5...
O-O {[%clk 0:02:57.8]} 6. Be3 {[%clk 0:03:01]} 6... c6 {[%clk 0:02:48.8]} 7. h4
{[%clk 0:03:00.4]} 7... e5 {[%clk 0:02:48.6]} 8. d5 {[%clk 0:02:59.4]} 8... cxd5
{[%clk 0:02:48.9]} 9. cxd5 {[%clk 0:02:59.1]} 9... a6 {[%clk 0:02:44.2]} 10. h5
{[%clk 0:02:58.8]} 10... b5 {[%clk 0:02:44.3]} 11. a3 {[%clk 0:02:56.3]} 11...
Nbd7 {[%clk 0:02:36.3]} 12. hxg6 {[%clk 0:02:43.1]} 12... hxg6 {[%clk
0:02:34.7]} 13. Nh3 {[%clk 0:02:23.6]} 13... Nc5 {[%clk 0:02:34]} 14. Ng5 {[%clk
0:02:22.6]} 14... Bd7 {[%clk 0:02:19.6]} 15. b4 {[%clk 0:02:10.6]} 15... Na4
{[%clk 0:02:16.5]} 16. Nxa4 {[%clk 0:02:10]} 16... bxa4 {[%clk 0:02:16.3]} 17.
Qd2 {[%clk 0:02:06.5]} 17... Bb5 {[%clk 0:02:14.4]} 18. f3 {[%clk 0:01:56.8]}
18... Rc8 {[%clk 0:02:11.5]} 19. Kf2 {[%clk 0:01:50.5]} 19... Nd7 {[%clk
0:01:28.9]} 20. Rac1 {[%clk 0:01:22.8]} 20... Rc7 {[%clk 0:01:08.9]} 21. Bxb5
{[%clk 0:01:20.4]} 21... axb5 {[%clk 0:01:08.8]} 22. Rc6 {[%clk 0:01:20.9]}
22... Nb8 {[%clk 0:01:03.3]} 23. Rxc7 {[%clk 0:01:16.8]} 23... Qxc7 {[%clk
0:01:04.2]} 24. Rc1 {[%clk 0:01:16.2]} 24... Qb7 {[%clk 0:01:04.7]} 25. Qc2
{[%clk 0:01:09.4]} 25... Re8 {[%clk 0:00:42.9]} 26. Qc7 {[%clk 0:01:07.3]} 26...
Qxc7 {[%clk 0:00:33.4]} 27. Rxc7 {[%clk 0:01:08.2]} 27... Na6 {[%clk 0:00:22.5]}
28. Rxf7 {[%clk 0:01:02.4]} 28... Ra8 {[%clk 0:00:18.1]} 29. Rb7 {[%clk
0:00:42.9]} 29... Nxb4 {[%clk 0:00:14.3]} 30. axb4 {[%clk 0:00:43.8]} 30... a3
{[%clk 0:00:14.6]} 31. Bc1 {[%clk 0:00:44.3]} 31... Bh6 {[%clk 0:00:12.1]} 32.
f4 {[%clk 0:00:18.8]} 32... exf4 {[%clk 0:00:10.4]} 33. Nf7 {[%clk 0:00:14.3]}
33... Bg7 {[%clk 0:00:09.2]} 34. Bxa3 {[%clk 0:00:14.4]} 34... Rxa3 {[%clk
0:00:09.2]} 35. Nxd6 {[%clk 0:00:15.1]} 35... Bd4+ {[%clk 0:00:07.6]} 36. Ke2
{[%clk 0:00:11.6]} 36... Ra2+ {[%clk 0:00:07.4]} 37. Kd3 {[%clk 0:00:12.1]}
37... Be5 {[%clk 0:00:03.6]} 38. Nf7 {[%clk 0:00:11.6]} 38... Bf6 {[%clk
0:00:02.1]} 39. e5 {[%clk 0:00:09.7]} 39... Bh4 {[%clk 0:00:02.7]} 40. Nh6+
{[%clk 0:00:04.5]} 40... Kf8 {[%clk 0:00:02.1]} 41. Ke4 {[%clk 0:00:02.4]} 41...
Rf2 {[%clk 0:00:01.2]} 42. Rf7+ {[%clk 0:00:02]} 42... Ke8 {[%clk 0:00:01.1]}
43. Rxf4 {[%clk 0:00:02.9]} 43... Rxg2 {[%clk 0:00:01.5]} 44. Rxh4 {[%clk
0:00:02.9]} 44... Re2+ {[%clk 0:00:02.1]} 45. Kf3 {[%clk 0:00:03.2]} 45... Rg2
{[%clk 0:00:02.7]} 46. Kxg2 {[%clk 0:00:03.2]} 1-0